fUSD/lending_fUSD_20250814
["ID","MTS","AMOUNT","RATE_DAILY","PERIOD"]
[379206221,1755185537657,-1502.87,0.00027808,2]
[379206222,1755185537667,-404.69741801,0.00027808,2]
[379206223,1755185537677,-400.0,0.00027808,2]
[379206224,1755185537687,-3248.41,0.00027808,2]
[379206225,1755185537696,-10143.75,0.00027808,2]
[379206226,1755185537708,-945.37,0.00027808,2]
[379206227,1755185537718,-1077.25,0.00027808,2]
[379206228,1755185537727,-6998.86,0.00027808,2]
[379206229,1755185537737,-400.0,0.00027808,2]
[379206230,1755185537747,-400.0,0.00027808,2]
[379206231,1755185537756,-3026.01,0.00027808,2]
[379206232,1755185537765,-400.0,0.00027808,2]
[379206233,1755185537776,-4765.89,0.00027808,2]
[379206234,1755185537785,-955.05,0.00027808,2]
[379206235,1755185537795,-151.0,0.00027808,7]
[379206236,1755185537804,-151.0,0.00027808,7]
[379206237,1755185537814,-854.86,0.00027808,2]
[379206238,1755185537823,-8865.83,0.00027808,2]
[379206239,1755185537833,-430.05,0.00027808,2]
[379206240,1755185537842,-400.0,0.00027808,2]
[379206241,1755185537852,-405.24,0.00027808,2]
[379206242,1755185537862,-400.0,0.00027808,2]
[379206243,1755185537871,-400.0,0.00027808,2]
[379206244,1755185537880,-1104.18,0.00027808,2]
[379206245,1755185537890,-1867.52,0.00027808,2]
[379206246,1755185537900,-480.6,0.00027808,2]
[379206247,1755185537909,-400.0,0.00027808,2]
[379206248,1755185537918,-1069.9,0.00027808,2]
[379206249,1755185537928,-6474.25,0.00027808,2]
[379206250,1755185537938,-8393.7,0.00027808,2]
[379206251,1755185537947,-2623.36,0.00027808,2]
[379206252,1755185537957,-903.34,0.00027808,2]
[379206253,1755185537967,-507.53,0.00027808,2]
[379206254,1755185537978,-1325.24,0.00027808,2]
[379206255,1755185537987,-7291.17,0.00027808,2]
[379206256,1755185537997,-400.0,0.00027808,2]
[379206257,1755185538007,-173.07722589,0.00027808,2]
[379206258,1755185538016,-400.0,0.00027808,2]
[379206259,1755185538026,-7650.45,0.00027808,2]
[379206260,1755185538036,-554.21,0.00027808,2]
[379206261,1755185538046,-400.0,0.00027808,2]
[379206262,1755185538056,-1412.24,0.00027808,2]
[379206263,1755185538066,-2798.34,0.00027808,2]
[379206264,1755185538075,-576.58,0.00027808,2]
[379206265,1755185538086,-3319.42,0.00027808,2]
[379206266,1755185538096,-3043.5,0.00027808,2]
[379206267,1755185538106,-2957.52,0.00027808,2]
[379206268,1755185538116,-400.0,0.00027808,2]
[379206269,1755185538126,-5118.48,0.00027808,2]
[379206270,1755185538136,-1425.49,0.00027808,2]
[379206271,1755185538148,-1391.47,0.00027808,2]
[379206272,1755185538158,-3051.11,0.00027808,2]
[379206273,1755185538168,-400.0,0.00027808,2]
[379206274,1755185538178,-400.0,0.00027808,2]
[379206275,1755185538189,-7119.26,0.00027808,2]
[379206276,1755185538201,-1461.82,0.00027808,2]
[379206277,1755185538211,-400.0,0.00027808,2]
[379206278,1755185538223,-4194.05,0.00027808,2]
[379206279,1755185538233,-400.0,0.00027808,2]
[379206280,1755185538243,-400.0,0.00027808,2]
[379206281,1755185538253,-7618.68,0.00027808,2]
[379206282,1755185538263,-1979.5,0.00027808,2]
[379206283,1755185538273,-400.0,0.00027808,2]
[379206284,1755185538283,-567.15,0.00027808,2]
[379206285,1755185538293,-4822.62,0.00027808,2]
[379206286,1755185538303,-400.0,0.00027808,2]
[379206287,1755185538313,-400.0,0.00027808,2]
[379206288,1755185538323,-485.62,0.00027808,2]
[379206289,1755185538333,-8328.83,0.00027808,2]
[379206290,1755185538342,-400.0,0.00027808,2]
[379206291,1755185538352,-400.0,0.00027808,2]
[379206292,1755185538361,-821.23,0.00027808,2]
[379206293,1755185538371,-6152.81,0.00027808,2]
[379206294,1755185538381,-3152.44,0.00027808,2]
[379206295,1755185538391,-2693.87,0.00027808,2]
[379206296,1755185538402,-1176.77,0.00027808,2]
[379206297,1755185538623,-907.24,0.00027808,2]
[379206298,1755185538633,-457.19,0.00027808,2]
[379206299,1755185538642,-423.0,0.00027808,2]
[379206300,1755185538652,-1648.5,0.00027808,2]
[379206301,1755185538661,-400.0,0.00027808,2]
[379206302,1755185538670,-400.0,0.00027808,2]
[379206303,1755185538680,-9324.24,0.00027808,2]
[379206304,1755185538689,-12493.03,0.00027808,2]
[379206305,1755185538699,-400.0,0.00027808,2]
[379206306,1755185538710,-400.0,0.00027808,2]
[379206307,1755185538719,-5283.4,0.00027808,2]
[379206308,1755185538729,-4154.62,0.00027808,2]
[379206309,1755185538738,-575.75,0.00027808,2]
[379206310,1755185538748,-985.22,0.00027808,2]
[379206311,1755185538757,-581.38,0.00027808,2]
[379206312,1755185538767,-6027.64,0.00027808,2]
[379206313,1755185538777,-496.93,0.00027808,2]
[379206314,1755185538787,-5280.57,0.00027808,2]
[379206315,1755185538796,-800.51,0.00027808,2]
[379206316,1755185538805,-2557.41,0.00027808,2]
[379206317,1755185538815,-6846.66,0.00027808,2]
[379206318,1755185538824,-1756.56,0.00027808,2]
[379206319,1755185538833,-3085.02,0.00027808,2]
[379206320,1755185538841,-11504.48,0.00027808,2]
[379206321,1755185538850,-2557.24,0.00027808,2]
[379206322,1755185538859,-1211.83,0.00027808,2]
[379206323,1755185538868,-171.276617,0.00027808,7]
[379206324,1755185538877,-171.276617,0.00027808,7]
[379206325,1755185538886,-400.0,0.00027808,2]
[379206326,1755185538895,-1100.77,0.00027808,2]
[379206327,1755185538903,-3801.64,0.00027808,2]
[379206328,1755185538911,-400.0,0.00027808,2]
[379206329,1755185538919,-3485.83,0.00027808,2]
[379206330,1755185538928,-13666.85,0.00027808,2]
[379206331,1755185538937,-400.0,0.00027808,2]
[379206332,1755185538945,-400.0,0.00027808,2]
[379206333,1755185538954,-400.0,0.00027808,2]
[379206334,1755185538964,-400.0,0.00027808,2]
[379206335,1755185538974,-628.0,0.00027808,2]
[379206336,1755185538985,-11329.28,0.00027808,2]
[379206337,1755185538994,-171.276617,0.00027808,7]
[379206338,1755185539004,-2846.11,0.00027808,2]
[379206339,1755185539014,-171.276617,0.00027808,7]
[379206340,1755185539024,-6326.44,0.00027808,2]
[379206341,1755185539033,-5281.85,0.00027808,2]
[379206342,1755185539043,-9573.35,0.00027808,2]
[379206343,1755185539052,-6179.54,0.00027808,2]
[379206344,1755185539062,-877.22,0.00027808,2]
[379206345,1755185539071,-400.0,0.00027808,2]
[379206346,1755185539081,-400.0,0.00027808,2]
[379206347,1755185539090,-400.0,0.00027808,2]
[379206348,1755185539100,-3391.88,0.00027808,2]
[379206349,1755185539109,-2572.41,0.00027808,2]
[379206350,1755185539119,-1135.94,0.00027808,2]
[379206351,1755185539128,-1185.25,0.00027808,2]
[379206352,1755185539138,-3301.17,0.00027808,2]
[379206353,1755185539151,-400.0,0.00027808,2]
[379206354,1755185539161,-1636.72,0.00027808,2]
[379206355,1755185539171,-437.76,0.00027808,2]
[379206356,1755185539180,-1345.93,0.00027808,2]
[379206357,1755185539190,-915.67,0.00027808,2]
[379206358,1755185539202,-18929.48,0.00027808,2]
[379206359,1755185539211,-3525.86,0.00027808,2]
[379206360,1755185539221,-945.16,0.00027808,2]
[379206361,1755185539231,-1030.33,0.00027808,2]
[379206362,1755185539241,-400.0,0.00027808,2]
[379206363,1755185539251,-635.86,0.00027808,2]
[379206364,1755185539260,-6202.44,0.00027808,2]
[379206365,1755185539270,-261.156447,0.00027808,7]
[379206366,1755185539279,-261.156447,0.00027808,7]
[379206367,1755185539289,-418.43,0.00027808,2]
[379206368,1755185539298,-6566.64,0.00027808,2]
[379206369,1755185539308,-859.69,0.00027808,2]
[379206370,1755185539317,-5564.48,0.00027808,2]
[379206371,1755185539327,-3626.23,0.00027808,2]
[379206372,1755185539337,-400.0,0.00027808,2]
[379206373,1755185539347,-400.0,0.00027808,2]
[379206374,1755185539357,-3116.26,0.00027808,2]
[379206375,1755185539366,-400.0,0.00027808,2]
[379206376,1755185539377,-3262.33,0.00027808,2]
[379206377,1755185539387,-1976.84,0.00027808,2]
[379206378,1755185539396,-400.0,0.00027808,2]
[379206379,1755185539405,-261.156447,0.00027808,7]
[379206380,1755185539414,-261.156447,0.00027808,7]
[379206381,1755185539424,-480.73,0.00027808,2]
[379206382,1755185539434,-1302.43,0.00027808,2]
[379206383,1755185539444,-400.0,0.00027808,2]
[379206384,1755185539454,-400.0,0.00027808,2]
[379206385,1755185539465,-400.0,0.00027808,2]
[379206386,1755185539474,-400.0,0.00027808,2]
[379206387,1755185539484,-550.6,0.00027808,2]
[379206388,1755185539493,-2424.23,0.00027808,2]
[379206389,1755185539503,-606.72,0.00027808,2]
[379206390,1755185539513,-400.0,0.00027808,2]
[379206391,1755185539523,-400.0,0.00027808,2]
[379206392,1755185539533,-17273.92,0.00027808,2]
[379206393,1755185539543,-2687.1,0.00027808,2]
[379206394,1755185539553,-4608.25,0.00027808,2]
[379206395,1755185539563,-400.0,0.00027808,2]
[379206396,1755185539572,-1981.24,0.00027808,2]
[379206397,1755185539582,-2687.85,0.00027808,2]
[379206398,1755185539593,-2015.47,0.00027808,2]
[379206399,1755185539603,-400.0,0.00027808,2]
[379206400,1755185539613,-2929.51,0.00027808,2]
[379206401,1755185539623,-4685.61,0.00027808,2]
[379206402,1755185539633,-400.0,0.00027808,2]
[379206403,1755185539643,-5771.16,0.00027808,2]
[379206404,1755185539652,-400.0,0.00027808,2]
[379206405,1755185539662,-400.0,0.00027808,2]
[379206406,1755185539671,-2142.41,0.00027808,2]
[379206407,1755185539682,-4767.67,0.00027808,2]
[379206408,1755185539692,-2757.68,0.00027808,2]
[379206409,1755185539703,-400.0,0.00027808,2]
[379206410,1755185539713,-8474.45,0.00027808,2]
[379206411,1755185539723,-400.0,0.00027808,2]
[379206412,1755185539733,-632.866916,0.00027808,7]
[379206413,1755185539746,-632.866916,0.00027808,7]
[379206414,1755185539756,-447.5,0.00027808,2]
[379206415,1755185539765,-400.0,0.00027808,2]
[379206416,1755185539775,-400.0,0.00027808,2]
[379206417,1755185539784,-400.0,0.00027808,2]
[379206418,1755185539793,-400.0,0.00027808,2]
[379206419,1755185539802,-4346.13,0.00027808,2]
[379206420,1755185539812,-1099.63,0.00027808,2]
[379206421,1755185539821,-400.0,0.00027808,2]
[379206422,1755185539830,-3796.11,0.00027808,2]
[379206423,1755185539840,-478.3,0.00027808,2]
[379206424,1755185539850,-400.0,0.00027808,2]
[379206425,1755185539860,-2075.87,0.00027808,2]
[379206426,1755185539869,-2191.9,0.00027808,2]
[379206427,1755185539879,-632.866916,0.00027808,7]
[379206428,1755185539889,-400.0,0.00027808,2]
[379206429,1755185539898,-632.866916,0.00027808,7]
[379206430,1755185539908,-400.0,0.00027808,2]
[379206431,1755185539918,-2124.43,0.00027808,2]
[379206432,1755185539928,-6540.61,0.00027808,2]
[379206433,1755185539938,-17694.51,0.00027808,2]
[379206434,1755185539947,-706.4,0.00027808,2]
[379206435,1755185539960,-320.51907,0.00027808,7]
[379206436,1755185539971,-5251.96,0.00027808,2]
[379206437,1755185539981,-320.51907,0.00027808,7]
[379206438,1755185539991,-8588.41,0.00027808,2]
[379206439,1755185540001,-2530.26,0.00027808,2]
[379206440,1755185540011,-2459.53,0.00027808,2]
[379206441,1755185540021,-2838.45,0.00027808,2]
[379206442,1755185540030,-5444.83,0.00027808,2]
[379206443,1755185540040,-1095.21,0.00027808,2]
[379206444,1755185540049,-1598.76,0.00027808,2]
[379206445,1755185540059,-760.5,0.00027808,2]
[379206446,1755185540068,-400.0,0.00027808,2]
[379206447,1755185540079,-2126.86,0.00027808,2]
[379206448,1755185540089,-320.51907,0.00027808,7]
[379206449,1755185540098,-4945.47,0.00027808,2]
[379206450,1755185540108,-5572.39,0.00027808,2]
[379206451,1755185540117,-3089.27,0.00027808,2]
[379206452,1755185540127,-320.51907,0.00027808,7]
[379206453,1755185540137,-517.15643223,0.00027808,2]
[379206454,1755185540150,-6068.79,0.00027808,2]
[379206455,1755185540159,-6569.21,0.00027808,2]
[379206456,1755185540169,-400.0,0.00027808,2]
[379206457,1755185540179,-2675.98,0.00027808,2]
[379206458,1755185540191,-3738.53,0.00027808,2]
[379206459,1755185540204,-1969.6,0.00027808,2]
[379206460,1755185540214,-11584.68,0.00027808,2]
[379206461,1755185540227,-635.64,0.00027808,2]
[379206462,1755185540237,-1705.24,0.00027808,2]
[379206463,1755185540247,-803.12,0.00027808,2]
[379206464,1755185540257,-772.51,0.00027808,2]
[379206465,1755185540267,-3012.8,0.00027808,2]
[379206466,1755185540276,-400.0,0.00027808,2]
[379206467,1755185540286,-798.17,0.00027808,2]
[379206468,1755185540296,-1002.32,0.00027808,2]
[379206469,1755185540305,-649.39,0.00027808,2]
[379206470,1755185540315,-2590.45,0.00027808,2]
[379206471,1755185540324,-1031.6,0.00027808,2]
[379206472,1755185540333,-400.0,0.00027808,2]
[379206473,1755185540343,-2501.78,0.00027808,2]
[379206474,1755185540352,-7150.5,0.00027808,2]
[379206475,1755185540362,-541.92,0.00027808,2]
[379206476,1755185540372,-1319.92,0.00027808,2]
[379206477,1755185540382,-702.75,0.00027808,2]
[379206478,1755185540393,-11521.53,0.00027808,2]
[379206479,1755185540403,-400.0,0.00027808,2]
[379206480,1755185540413,-2639.48,0.00027808,2]
[379206481,1755185540423,-400.0,0.00027808,2]
[379206482,1755185540433,-9184.76,0.00027808,2]
[379206483,1755185540443,-2628.13,0.00027808,2]
[379206484,1755185540454,-350.652721,0.00027808,7]
[379206485,1755185540464,-350.652721,0.00027808,7]
[379206486,1755185540474,-1901.99,0.00027808,2]
[379206487,1755185540483,-400.0,0.00027808,2]
[379206488,1755185540494,-400.0,0.00027808,2]
[379206489,1755185540504,-2470.8,0.00027808,2]
[379206490,1755185540514,-39354.55,0.00027808,2]
[379206491,1755185540524,-400.0,0.00027808,2]
[379206492,1755185540536,-254.11,0.00027808,2]
[379206493,1755185540546,-944.04,0.00027808,2]
[379206494,1755185540557,-1681.82,0.00027808,2]
[379206495,1755185540569,-8381.41,0.00027808,2]
[379206496,1755185540579,-5969.73,0.00027808,2]
[379206497,1755185540589,-7406.77,0.00027808,2]
[379206498,1755185540599,-5296.51,0.00027808,2]
[379206499,1755185540609,-2298.66,0.00027808,2]
[379206500,1755185540618,-350.652721,0.00027808,7]
[379206501,1755185540628,-350.652721,0.00027808,7]
[379206502,1755185540638,-400.0,0.00027808,2]
[379206503,1755185540647,-400.0,0.00027808,2]
[379206504,1755185540657,-952.22,0.00027808,2]
[379206505,1755185540667,-716.29,0.00027808,2]
[379206506,1755185540677,-4115.14,0.00027808,2]
[379206507,1755185540687,-4861.41,0.00027808,2]
[379206508,1755185540697,-4629.83,0.00027808,2]
[379206509,1755185540708,-683.52,0.00027808,2]
[379206510,1755185540719,-1141.92,0.00027808,2]
[379206511,1755185540729,-400.0,0.00027808,2]
[379206512,1755185540738,-514.37,0.00027808,2]
[379206513,1755185540748,-441.74,0.00027808,2]
[379206514,1755185540758,-2435.1,0.00027808,2]
[379206515,1755185540768,-3410.12,0.00027808,2]
[379206516,1755185540778,-400.0,0.00027808,2]
[379206517,1755185540788,-4714.98,0.00027808,2]
[379206518,1755185540798,-417.32727882,0.00027808,2]
[379206519,1755185540807,-1290.86,0.00027808,2]
[379206520,1755185540816,-12720.06,0.00027808,2]
[379206521,1755185540826,-400.0,0.00027808,2]
[379206522,1755185540836,-5110.67,0.00027808,2]
[379206523,1755185540846,-400.0,0.00027808,2]
[379206524,1755185540856,-6007.8,0.00027808,2]
[379206525,1755185540867,-400.0,0.00027808,2]
[379206526,1755185540876,-3458.23,0.00027808,2]
[379206527,1755185540887,-400.0,0.00027808,2]
[379206528,1755185540897,-400.0,0.00027808,2]
[379206529,1755185540907,-3689.29,0.00027808,2]
[379206530,1755185540916,-7001.12,0.00027808,2]
[379206531,1755185540927,-716.91,0.00027808,2]
[379206532,1755185540937,-400.0,0.00027808,2]
[379206533,1755185540946,-400.0,0.00027808,2]
[379206534,1755185540957,-400.0,0.00027808,2]
[379206535,1755185540967,-400.0,0.00027808,2]
[379206536,1755185540977,-1668.33,0.00027808,2]
[379206537,1755185540987,-400.0,0.00027808,2]
[379206538,1755185540997,-400.0,0.00027808,2]
[379206539,1755185541007,-5903.76,0.00027808,2]
[379206540,1755185541017,-976.78,0.00027808,2]
[379206541,1755185541027,-764.41,0.00027808,2]
[379206542,1755185541037,-400.0,0.00027808,2]
[379206543,1755185541046,-804.23,0.00027808,2]
[379206544,1755185541056,-5755.46,0.00027808,2]
[379206545,1755185541067,-4616.83,0.00027808,2]
[379206546,1755185541077,-574.7,0.00027808,2]
[379206547,1755185541086,-400.0,0.00027808,2]
[379206548,1755185541096,-6256.65,0.00027808,2]
[379206549,1755185541105,-7582.06,0.00027808,2]
[379206550,1755185541116,-407.58,0.00027808,2]
[379206551,1755185541126,-192.80460537,0.00027808,2]
[379206552,1755185541135,-1893.17,0.00027808,2]
[379206553,1755185541146,-1859.86,0.00027808,2]
[379206554,1755185541158,-634.01,0.00027808,2]
[379206555,1755185541168,-6689.6,0.00027808,2]
[379206556,1755185541177,-6218.57,0.00027808,2]
[379206557,1755185541187,-2972.4,0.00027808,2]
[379206558,1755185541199,-400.0,0.00027808,2]
[379206559,1755185541211,-400.0,0.00027808,2]
[379206560,1755185541221,-546.84,0.00027808,2]
[379206561,1755185541237,-400.0,0.00027808,2]
[379206562,1755185541247,-943.55,0.00027808,2]
[379206563,1755185541257,-400.0,0.00027808,2]
[379206564,1755185541266,-2397.59,0.00027808,2]
[379206565,1755185541277,-7967.93,0.00027808,2]
[379206566,1755185541287,-891.65,0.00027808,2]
[379206567,1755185541296,-610.39,0.00027808,2]
[379206568,1755185541306,-2447.93,0.00027808,2]
[379206569,1755185541316,-400.0,0.00027808,2]
[379206570,1755185541326,-400.0,0.00027808,2]
[379206571,1755185541335,-3948.42,0.00027808,2]
[379206572,1755185541345,-400.0,0.00027808,2]
[379206573,1755185541354,-2259.68,0.00027808,2]
[379206574,1755185541364,-7694.47,0.00027808,2]
[379206575,1755185541373,-448.36,0.00027808,2]
[379206576,1755185541383,-2448.57,0.00027808,2]
[379206577,1755185541393,-400.0,0.00027808,2]
[379206578,1755185541403,-16030.0,0.00027808,2]
[379206579,1755185541413,-400.0,0.00027808,2]
[379206580,1755185541422,-820.41,0.00027808,2]
[379206581,1755185541432,-6993.49321635,0.00027808,2]
[379206582,1755185544505,-215.5,0.0002729,2]
[379206583,1755185544515,-400.0,0.00027397,2]
[379206584,1755185544525,-151.0,0.00027397,2]
[379206585,1755185544535,-5409.79938584,0.00027397,2]
[379206586,1755185544637,-4235.46061416,0.00027397,2]
[379206587,1755185544647,-396.43938584,0.00027397,2]
[379206588,1755185544659,-103.56061416,0.00027397,2]
[379206589,1755185544668,-3101.92121649,0.00027397,2]
[379206590,1755185544679,-2374.06878351,0.00027397,2]
[379206591,1755185544689,-255.205467,0.00027397,2]
[379206592,1755185544699,-500.0,0.00027397,2]
[379206593,1755185544709,-400.0,0.00027397,2]
[379206594,1755185544718,-2452.13,0.00027397,2]
[379206595,1755185544728,-400.0,0.00027397,2]
[379206596,1755185544739,-400.0,0.00027534,2]
[379206597,1755185544749,-606.25733747,0.00027534,7]
[379206598,1755185546320,-3967.72,0.00024091,2]
[379206599,1755185546330,-2073.44,0.00027397,2]
[379206600,1755185546340,-464.72,0.00027397,2]
[379206601,1755185546350,-400.0,0.00027397,2]
[379206602,1755185546359,-477.74,0.00027397,2]
[379206603,1755185546370,-4448.68,0.00027397,2]
[379206604,1755185546379,-2556.02,0.00027397,2]
[379206605,1755185546389,-500.0,0.00027397,2]
[379206606,1755185546399,-400.0,0.00027397,2]
[379206607,1755185546408,-500.0,0.00027397,2]
[379206608,1755185546418,-1877.98509953,0.00027534,7]
[379206609,1755185546428,-3253.63513764,0.00027534,2]
[379206610,1755185546440,-6391.62486236,0.00027534,2]
[379206611,1755185546450,-5475.99,0.00027534,2]
[379206612,1755185546463,-255.205467,0.00027534,2]
[379206613,1755185546472,-2452.13,0.00027534,2]
[379206614,1755185546482,-400.0,0.00027534,2]
[379206615,1755185546492,-2073.44,0.00027534,2]
[379206616,1755185546502,-400.0,0.00027534,2]
[379206617,1755185546511,-4448.68,0.00027534,2]
[379206618,1755185546520,-2556.02,0.00027534,2]
[379206619,1755185546530,-400.0,0.00027671,2]
[379206620,1755185546541,-2484.242437,0.00027671,7]
[379206621,1755185546550,-2484.242437,0.00027671,7]
[379206622,1755185546560,-9645.26,0.00027671,2]
[379206623,1755185546569,-5475.99,0.00027671,2]
[379206624,1755185546579,-255.205467,0.00027671,2]
[379206625,1755185546588,-2452.13,0.00027671,2]
[379206626,1755185546598,-337.75,0.00027671,2]
[379206627,1755185546607,-2073.44,0.00027671,2]
[379206628,1755185546617,-400.0,0.00027671,2]
[379206629,1755185546626,-4448.68,0.00027671,2]
[379206630,1755185546636,-3140.65678365,0.00027808,2]
[379206631,1755185546645,-5823.46,0.00027808,2]
[379206632,1755185546655,-11287.08,0.00027808,2]
[379206633,1755185546664,-4404.54,0.00027808,2]
[379206634,1755185546673,-833.81,0.00027808,2]
[379206635,1755185546683,-400.0,0.00027808,2]
[379206636,1755185546692,-2799.25,0.00027808,2]
[379206637,1755185546701,-400.0,0.00027808,2]
[379206638,1755185546711,-6766.18,0.00027808,2]
[379206639,1755185546721,-400.0,0.00027808,2]
[379206640,1755185546730,-11943.33,0.00027808,2]
[379206641,1755185546739,-1030.78,0.00027808,2]
[379206642,1755185546749,-6257.67,0.00027808,2]
[379206643,1755185546758,-9727.26,0.00027808,2]
[379206644,1755185546768,-528.98,0.00027808,2]
[379206645,1755185546778,-2546.41,0.00027808,2]
[379206646,1755185546787,-311.8700085,0.00027808,2]
[379206647,1755185546797,-658.73,0.00027808,2]
[379206648,1755185546807,-400.0,0.00027808,2]
[379206649,1755185546816,-400.0,0.00027808,2]
[379206650,1755185546826,-3468.07,0.00027808,2]
[379206651,1755185546835,-5787.92,0.00027808,2]
[379206652,1755185546845,-5614.51,0.00027808,2]
[379206653,1755185546854,-542.39,0.00027808,2]
[379206654,1755185546863,-247.4431,0.00027808,7]
[379206655,1755185546874,-6181.13,0.00027808,2]
[379206656,1755185546883,-400.0,0.00027808,2]
[379206657,1755185546893,-538.07070943,0.00027808,2]
[379206658,1755185546902,-810.94,0.00027808,2]
[379206659,1755185546913,-844.55,0.00027808,2]
[379206660,1755185546922,-4694.06,0.00027808,2]
[379206661,1755185546933,-400.0,0.00027808,2]
[379206662,1755185546943,-3409.43,0.00027808,2]
[379206663,1755185546953,-13993.43,0.00027808,2]
[379206664,1755185546964,-3104.05,0.00027808,2]
[379206665,1755185546975,-8132.34,0.00027808,2]
[379206666,1755185546984,-459.49,0.00027808,2]
[379206667,1755185546994,-400.0,0.00027808,2]
[379206668,1755185547003,-400.0,0.00027808,2]
[379206669,1755185547012,-1680.1,0.00027808,2]
[379206670,1755185547021,-400.0,0.00027808,2]
[379206671,1755185547032,-1269.76,0.00027808,2]
[379206672,1755185547042,-639.64,0.00027808,2]
[379206673,1755185547052,-3086.39,0.00027808,2]
[379206674,1755185547062,-400.0,0.00027808,2]
[379206675,1755185547072,-8818.84,0.00027808,2]
[379206676,1755185547082,-7132.25,0.00027808,2]
[379206677,1755185547091,-400.0,0.00027808,2]
[379206678,1755185547100,-400.0,0.00027808,2]
[379206679,1755185547109,-982.43,0.00027808,2]
[379206680,1755185547119,-1884.09,0.00027808,2]
[379206681,1755185547128,-3580.54,0.00027808,2]
[379206682,1755185547138,-1042.17,0.00027808,2]
[379206683,1755185547148,-2831.0,0.00027808,2]
[379206684,1755185547161,-5103.32,0.00027808,2]
[379206685,1755185547171,-400.0,0.00027808,2]
[379206686,1755185547181,-400.0,0.00027808,2]
[379206687,1755185547191,-184.00258534,0.00027808,2]
[379206688,1755185547201,-3527.71,0.00027808,2]
[379206689,1755185547211,-1027.01,0.00027808,2]
[379206690,1755185547220,-400.0,0.00027808,2]
[379206691,1755185547232,-400.0,0.00027808,2]
[379206692,1755185547242,-558.79,0.00027808,2]
[379206693,1755185547252,-1908.65,0.00027808,2]
[379206694,1755185547261,-400.0,0.00027808,2]
[379206695,1755185547270,-2836.21,0.00027808,2]
[379206696,1755185547279,-518.91,0.00027808,2]
[379206697,1755185547288,-410.32614272,0.00027808,2]
[379206698,1755185551629,629.9,0.00030136,120]
[379206699,1755185551773,651.9,0.00030136,120]
[379206706,1755185566792,3419069.90214661,0.00030137,120]
[379206712,1755185697231,963.37,0.00025294,30]
[379206719,1755185833140,775.52,0.00025959,120]
[379206728,1755186000294,9522.4,0.00026,30]
[379206730,1755186055775,849.8680657,0.00026,30]
[379206743,1755186297140,180.76,0.00016084,2]
[379206763,1755186631766,-250.0,0.00018784,2]
[379206765,1755186631779,-1000.0,0.00018834,2]
[379206766,1755186631788,-300.0,0.00018834,2]
[379206767,1755186631797,-500.0,0.00018898,2]
[379206768,1755186631807,-151.0,0.00019178,2]
[379206769,1755186631817,-1000.0,0.0001924,2]
[379206770,1755186631826,-500.0,0.0001924,2]
[379206771,1755186631836,-300.0,0.00019626,2]
[379206772,1755186631846,-1200.0,0.00019626,2]
[379206773,1755186631856,-3336.2506,0.00019627,2]
[379206774,1755186631866,-154.02105334,0.00019726,2]
[379206775,1755186631875,-6493.79,0.00019965,2]
[379206776,1755186631886,-52054.93,0.00019965,2]
[379206777,1755186631895,-3982.98,0.0001999,2]
[379206778,1755186631904,-512.0,0.00020057,2]